bitfinex/quotes_BTCUSD_20220207
["timestamp","ask_amount","ask_price","bid_price","bid_amount"]
[1644246907920,0.001,43370.0,43368.0,0.53261993]
[1644246908121,0.001,43370.0,43369.0,0.326227]
[1644246908420,0.001,43370.0,43369.0,0.426227]
[1644246908819,0.001,43370.0,43369.0,0.326227]
[1644246909021,0.29843418,43380.0,43371.0,0.39432789]
[1644246909221,0.15418667,43381.0,43371.0,0.39432789]
[1644246909222,0.15418667,43381.0,43375.0,0.02159167]
[1644246909421,0.0019186,43388.0,43381.0,0.25272059]
[1644246909621,0.0019186,43388.0,43382.0,0.326227]
[1644246909823,0.0019186,43388.0,43384.0,0.25536939]
[1644246910020,0.0019186,43388.0,43381.0,0.25272059]
[1644246910477,0.0019186,43388.0,43382.0,0.326227]
[1644246910676,0.0019186,43388.0,43381.0,0.25272059]
[1644246911076,0.0019186,43388.0,43383.0,0.35940345]
[1644246911276,0.0019186,43388.0,43381.0,0.25272059]
[1644246912678,0.0019186,43388.0,43368.0,0.115294]
[1644246912679,0.0019186,43388.0,43371.0,0.5849]
[1644246912879,0.0019186,43388.0,43372.0,0.2953]
[1644246913277,0.00062416,43382.0,43378.0,0.20367358]
[1644246913477,0.00062416,43382.0,43378.0,0.48112989]
[1644246914078,0.00062416,43382.0,43379.0,0.60140973]
[1644246914327,0.057655,43387.0,43380.0,0.19950382]
[1644246914525,0.00018784,43382.0,43380.0,0.39900677]
[1644246914731,0.04985,43381.0,43380.0,0.39900677]
[1644246914929,0.09821884,43381.0,43380.0,0.01887298]
[1644246915126,0.38375655,43379.0,43372.0,0.01545519]
[1644246915326,0.04985,43378.0,43372.0,0.01545519]
[1644246915527,0.04985,43378.0,43372.0,0.27925373]
[1644246915727,0.10003784,43378.0,43372.0,0.26879854]
[1644246916327,0.05018784,43378.0,43372.0,0.26879854]
[1644246916526,0.00018784,43378.0,43372.0,0.26879854]
[1644246916726,0.15767,43379.0,43372.0,0.26879854]
[1644246916928,0.00062416,43377.0,43372.0,0.26879854]
[1644246917330,0.04985,43376.0,43372.0,0.26879854]
[1644246917531,0.04985,43376.0,43372.0,0.02095134]
[1644246917729,0.04985,43376.0,43371.0,0.33325488]
[1644246918164,0.00062416,43376.0,43368.0,0.25313637]
[1644246918364,0.05767,43374.0,43368.0,0.25313637]
[1644246918562,0.05767,43374.0,43370.0,0.23720848]
[1644246918762,0.05767,43374.0,43367.0,0.01956115]
[1644246918966,0.04985,43373.0,43367.0,0.01956115]
[1644246919364,0.05047415,43373.0,43367.0,0.01956115]
[1644246919765,0.00062415,43373.0,43367.0,0.20977819]
[1644246919964,0.00062415,43373.0,43364.0,0.30982292]
[1644246920170,0.15767,43374.0,43362.0,0.20398513]
[1644246920366,0.15767,43374.0,43360.0,0.01881642]
[1644246920367,0.00018724,43373.0,43360.0,0.01881642]
[1644246920666,0.05737033,43371.0,43360.0,0.01881642]
[1644246920965,0.04985,43369.0,43360.0,0.01881642]
[1644246921163,0.057686,43368.0,43360.0,0.01881642]
[1644246921366,0.26057744,43367.0,43360.0,0.01881642]
[1644246921566,0.057685,43366.0,43360.0,0.01953667]
[1644246921822,0.04985,43365.0,43360.0,0.01953667]
[1644246922520,0.04985,43365.0,43360.0,0.01453667]
[1644246922723,0.04985,43365.0,43360.0,0.01381642]
[1644246922922,0.04985,43365.0,43360.0,0.01453667]
[1644246923321,0.157685,43366.0,43360.0,0.01453667]
[1644246923520,0.157685,43366.0,43360.0,0.00953667]
[1644246923719,0.157685,43366.0,43360.0,0.00072025]
[1644246923922,0.157685,43366.0,43358.0,0.37769362]
[1644246924120,0.157685,43366.0,43360.0,0.00072025]
[1644246924322,0.107685,43366.0,43360.0,0.00072025]
[1644246924520,0.157685,43366.0,43360.0,0.00072025]
[1644246924719,0.05,43365.0,43360.0,0.00072025]
[1644246924921,0.04985,43364.0,43360.0,0.00072025]
[1644246925224,0.057685,43363.0,43360.0,0.00072025]
[1644246925772,0.04985,43362.0,43360.0,0.00072025]
[1644246926172,0.04985,43362.0,43353.0,0.5357305]
[1644246926373,0.107685,43363.0,43359.0,0.00072025]
[1644246926775,0.04985,43362.0,43359.0,0.00072025]
[1644246927374,0.04985,43362.0,43353.0,0.25577836]
[1644246927576,0.107685,43363.0,43358.0,0.00072026]
[1644246927780,0.157685,43363.0,43358.0,0.00072026]
[1644246928175,0.1,43363.0,43358.0,0.00072026]
[1644246928576,0.05,43363.0,43355.0,0.28890375]
[1644246928775,0.16690028,43365.0,43355.0,0.28890375]
[1644246928975,0.16690028,43365.0,43358.0,0.00072026]
[1644246929232,0.05768,43363.0,43358.0,0.00072026]
[1644246929425,0.10753,43363.0,43358.0,0.00072026]
[1644246929624,0.04985,43362.0,43358.0,0.00072026]
[1644246929824,0.04985,43362.0,43353.0,0.25577836]
[1644246930025,0.15768,43363.0,43358.0,0.00072026]
[1644246930329,0.04985,43362.0,43358.0,0.00072026]
[1644246930729,0.34985,43362.0,43358.0,0.00072026]
[1644246931025,0.19031672,43361.0,43352.0,0.01938531]
[1644246931231,0.057696,43359.0,43358.0,0.00072026]
[1644246931426,0.68824998,43359.0,43358.0,0.00072026]
[1644246931825,0.73824998,43359.0,43358.0,0.00072026]
[1644246932025,0.72824998,43359.0,43358.0,0.00072026]
[1644246932325,0.68574998,43359.0,43350.0,0.0002816]
[1644246932525,0.0462,43358.0,43356.0,0.00072028]
[1644246932725,0.04985,43357.0,43356.0,0.00072028]
[1644246932974,0.09605,43357.0,43356.0,0.00072028]
[1644246933171,0.08105,43357.0,43356.0,0.00072028]
[1644246933371,0.13105,43357.0,43350.0,0.0002816]
[1644246933573,0.153895,43357.0,43349.0,0.01900176]
[1644246933771,0.153895,43357.0,43347.0,0.01953032]
[1644246933772,0.153895,43357.0,43354.0,0.00072031]
[1644246933973,0.034837,43356.0,43354.0,0.00072031]
[1644246934175,0.084837,43356.0,43354.0,0.00072031]
[1644246934374,0.05,43356.0,43354.0,0.00072031]
[1644246934574,0.034837,43355.0,43354.0,0.00072031]
[1644246934774,0.05,43355.0,43349.0,0.0002816]
[1644246934974,0.05,43355.0,43348.0,0.0002816]
[1644246935176,0.05,43355.0,43347.0,0.01953032]
[1644246935376,0.05,43356.0,43347.0,0.01953032]
[1644246935377,0.1,43356.0,43347.0,0.01953032]
[1644246935582,0.05,43356.0,43347.0,0.01953032]
[1644246935778,0.1,43356.0,43347.0,0.22189418]
[1644246935979,0.1,43356.0,43347.0,0.28844186]
[1644246936178,0.05,43356.0,43349.0,0.30436756]
[1644246936580,0.05,43356.0,43350.0,0.27901822]
[1644246936818,0.05,43356.0,43350.0,0.27929982]
[1644246937017,0.05,43356.0,43350.0,0.0002816]
[1644246937318,0.05,43356.0,43352.0,0.26177727]
[1644246937517,0.05106921,43356.0,43351.0,0.00071976]
[1644246938218,0.05106921,43356.0,43347.0,0.0002816]
[1644246938416,0.05106921,43356.0,43351.0,0.00071976]
[1644246938617,0.35757261,43356.0,43351.0,0.00071976]
[1644246939017,0.10106921,43356.0,43351.0,0.00071976]
[1644246939219,0.057694,43355.0,43351.0,0.00071976]
[1644246939417,0.057694,43355.0,43347.0,0.0002816]
[1644246939617,0.057694,43355.0,43351.0,0.00071976]
[1644246940117,0.107694,43355.0,43351.0,0.00071976]
[1644246940317,0.034837,43353.0,43351.0,0.00071976]
[1644246940586,0.034837,43353.0,43347.0,0.0002816]
[1644246940787,0.107694,43355.0,43346.0,0.19971399]
[1644246940788,0.1,43354.0,43346.0,0.19971399]
[1644246940984,0.1,43354.0,43347.0,0.0002816]
[1644246941185,0.1,43354.0,43346.0,0.19971399]
[1644246941484,0.1,43354.0,43346.0,0.0002816]
[1644246941685,0.1,43354.0,43345.0,0.1751916]
[1644246942084,0.1,43354.0,43348.0,0.00071686]
[1644246942284,0.034837,43353.0,43348.0,0.00071686]
[1644246942685,0.39705854,43353.0,43348.0,0.00071686]
[1644246943086,0.39705854,43353.0,43346.0,0.0002816]
[1644246943288,0.1,43354.0,43348.0,0.00071686]
[1644246943484,0.1577,43354.0,43348.0,0.00071686]
[1644246943884,0.034837,43353.0,43348.0,0.00071686]
[1644246944320,0.034837,43353.0,43346.0,0.0002816]
[1644246944520,0.1,43354.0,43348.0,0.00071686]
[1644246944722,0.034837,43353.0,43348.0,0.00071686]
[1644246945525,0.034837,43353.0,43348.0,0.0002816]
[1644246945722,0.034837,43353.0,43348.0,0.00071686]
[1644246946722,0.034837,43353.0,43346.0,0.24085508]
[1644246946924,0.1,43354.0,43348.0,0.00071686]
[1644246947123,0.0003,43353.0,43348.0,0.00071686]
[1644246947524,0.00089744,43352.0,43348.0,0.00071686]
[1644246947971,0.057698,43351.0,43347.0,0.0002816]
[1644246948171,0.057698,43351.0,43346.0,0.52239801]
[1644246948172,0.057698,43351.0,43348.0,0.00071686]
[1644246948371,0.034837,43350.0,43348.0,0.00071686]
[1644246948576,0.15025,43350.0,43348.0,0.00071686]
[1644246948771,0.20025,43350.0,43348.0,0.00071686]
[1644246948970,0.20025,43350.0,43346.0,0.0002816]
[1644246948971,0.25796013,43350.0,43346.0,0.0002816]
[1644246949174,0.25796013,43350.0,43345.0,0.17491]
[1644246949175,0.22296713,43347.0,43345.0,0.17491]
[1644246949371,0.0462,43346.0,43340.0,0.00314953]
[1644246949571,0.0462,43346.0,43340.0,0.00286793]
[1644246949572,0.8,43345.0,43340.0,0.00286793]
[1644246949771,0.0462,43344.0,43340.0,0.00314953]
[1644246949970,0.0462,43344.0,43340.0,0.00286793]
[1644246949971,0.05772,43343.0,43340.0,0.00286793]
[1644246950174,0.0462,43342.0,43340.0,0.00286793]
[1644246950371,0.0462,43342.0,43338.0,0.0002816]
[1644246950372,0.37312533,43342.0,43338.0,0.0002816]
[1644246950572,0.37312533,43342.0,43331.0,0.20529612]
[1644246950573,0.4,43341.0,43331.0,0.20529612]
[1644246950774,0.057717,43339.0,43330.0,0.01240001]
[1644246951075,0.1462,43340.0,43330.0,0.01240001]
[1644246951473,0.0962,43340.0,43335.0,0.05]
[1644246951730,0.0462,43340.0,43335.0,0.05]
[1644246951924,0.057709,43342.0,43330.0,0.01240001]
[1644246951925,0.17728129,43339.0,43330.0,0.01240001]
[1644246952122,0.17728129,43339.0,43330.0,0.06240001]
[1644246952322,0.05772,43340.0,43333.0,0.21322921]
[1644246952521,0.05772,43340.0,43330.0,0.06240001]
[1644246952722,0.05772,43340.0,43330.0,0.05240001]
[1644246952723,0.057719,43337.0,43330.0,0.05240001]
[1644246952922,0.057719,43337.0,43330.0,0.00240001]
[1644246953121,0.057719,43337.0,43336.0,0.05]
[1644246954130,0.10427492,43343.0,43342.0,0.0011]
[1644246954324,0.10427492,43343.0,43336.0,0.0483]
[1644246954524,0.057717,43340.0,43336.0,0.0483]
[1644246954823,0.057717,43340.0,43337.0,0.057717]
[1644246955223,0.10427492,43343.0,43337.0,0.057717]
[1644246955469,0.0017,43345.0,43337.0,0.057717]
[1644246955669,0.18035942,43346.0,43339.0,0.06747402]
[1644246955670,0.03415942,43346.0,43339.0,0.06747402]
[1644246955872,0.03415942,43346.0,43340.0,0.05771]
[1644246956470,0.0003,43345.0,43341.0,0.00071636]
[1644246956672,0.0017,43342.0,43341.0,0.00071636]
[1644246957473,0.35042279,43342.0,43334.0,0.0033]
[1644246957672,0.35042279,43342.0,43333.0,0.00298233]
[1644246957673,0.20208282,43337.0,43333.0,0.00298233]
[1644246957874,0.04704471,43337.0,43333.0,0.05298233]
[1644246958273,0.04704471,43337.0,43334.0,0.05]
[1644246958877,0.04704471,43337.0,43336.0,0.20839199]
[1644246958878,0.00084471,43337.0,43336.0,0.20839199]
[1644246959076,0.00084471,43337.0,43336.0,0.50839199]
[1644246959330,0.00084471,43337.0,43336.0,0.58473599]
[1644246959531,0.00084471,43337.0,43336.0,0.25839199]
[1644246959736,0.00084471,43337.0,43336.0,0.045]
[1644246959930,0.00084471,43337.0,43335.0,0.05]
[1644246960130,0.00084471,43337.0,43334.0,0.273122]
[1644246960332,0.00084471,43337.0,43334.0,0.3308404]
[1644246960731,0.00084471,43337.0,43334.0,0.52047874]
[1644246960934,0.00084471,43337.0,43334.0,0.3308404]
[1644246961337,0.00084471,43337.0,43334.0,0.173122]
[1644246961734,0.00114471,43337.0,43334.0,0.173122]
[1644246961934,0.00114471,43337.0,43334.0,0.23084328]
[1644246962435,0.00114471,43337.0,43334.0,0.173122]
[1644246963277,0.00114471,43337.0,43331.0,0.10039867]
[1644246964079,0.00114471,43337.0,43334.0,0.173122]
[1644246964480,0.05886971,43337.0,43334.0,0.173122]
[1644246964878,0.05886971,43337.0,43333.0,0.057719]
[1644246966483,0.05886971,43337.0,43331.0,0.00027993]
[1644246966728,0.05886971,43337.0,43330.0,0.12033294]
[1644246966729,0.115467,43335.0,43330.0,0.12033294]
[1644246966919,0.115467,43335.0,43330.0,0.00487994]
[1644246966920,0.161667,43335.0,43330.0,0.00487994]
[1644246967119,0.33676526,43334.0,43330.0,0.00487994]
[1644246967319,0.31624847,43333.0,43330.0,0.00531617]
[1644246967520,0.26183573,43332.0,43330.0,0.00531617]
[1644246967920,0.31957273,43332.0,43330.0,0.00531617]
[1644246968121,0.31343876,43331.0,43330.0,0.00531617]
[1644246968321,0.31957273,43332.0,43330.0,0.00460001]
[1644246969325,0.41957273,43332.0,43330.0,0.00460001]
[1644246969522,0.31957273,43332.0,43330.0,0.00460001]
[1644246969924,0.41957273,43332.0,43330.0,0.06233401]
[1644246970124,0.31957273,43332.0,43330.0,0.06233401]
[1644246970325,0.057737,43332.0,43330.0,0.06233401]
[1644246970769,0.00088565,43336.0,43331.0,0.35]
[1644246970970,0.00088565,43336.0,43335.0,0.05]
[1644246971372,0.00088565,43336.0,43335.0,0.31401155]
[1644246971871,0.00088565,43336.0,43335.0,0.35901155]
[1644246972671,0.00088565,43336.0,43335.0,0.57480182]
[1644246972875,0.0192401,43345.0,43335.0,0.57480182]
[1644246972876,0.0192401,43345.0,43337.0,0.326344]
[1644246973072,0.0192401,43345.0,43344.0,0.045]
[1644246973873,0.0192401,43345.0,43344.0,0.28590425]
[1644246974077,0.0001,43350.0,43344.0,0.24090425]
[1644246974323,0.0001,43350.0,43345.0,0.1077]
[1644246974528,0.00018799,43347.0,43346.0,0.045]
[1644246974722,0.00018799,43347.0,43346.0,0.095]
[1644246974922,0.00018799,43347.0,43346.0,0.09]
[1644246975522,0.0001,43350.0,43346.0,0.09]
[1644246975723,0.00062507,43349.0,43345.0,0.1027]
[1644246976125,0.00062507,43349.0,43348.0,0.14]
[1644246976723,0.0001,43350.0,43348.0,0.05]
[1644246976924,0.0001,43350.0,43349.0,0.045]
[1644246977127,0.0001,43350.0,43349.0,0.525635]
[1644246977325,0.0001,43350.0,43349.0,0.575635]
[1644246977525,0.0001,43350.0,43349.0,0.66272188]
[1644246977973,0.0004,43350.0,43349.0,0.66272188]
[1644246978175,0.0004,43350.0,43349.0,0.38374206]
[1644246978972,0.0004,43350.0,43349.0,0.05]
[1644246979176,0.0004,43350.0,43348.0,0.107702]
[1644246979477,0.0054,43350.0,43348.0,0.057702]
[1644246980076,1.87086296,43350.0,43348.0,0.057702]
[1644246980276,0.0004,43350.0,43348.0,0.057702]
[1644246980675,0.005,43349.0,43348.0,0.057702]
[1644246980874,0.0004,43350.0,43347.0,0.115404]
[1644246981074,0.005,43349.0,43347.0,0.165404]
[1644246981476,0.0004,43350.0,43347.0,0.165404]
[1644246981724,0.00102507,43350.0,43347.0,0.165404]
[1644246981919,0.00602507,43350.0,43347.0,0.165404]
[1644246982118,0.00102507,43350.0,43347.0,0.210404]
[1644246982719,0.00117127,43350.0,43347.0,0.210404]
[1644246983522,0.00117127,43350.0,43347.0,0.165404]
[1644246983919,0.00117127,43350.0,43347.0,0.210404]
[1644246984119,0.00117127,43350.0,43347.0,0.165404]
[1644246984120,0.00617127,43350.0,43347.0,0.165404]
[1644246984319,0.00617127,43350.0,43347.0,0.115404]
[1644246984520,0.00586398,43350.0,43347.0,0.115404]
[1644246984719,0.00086398,43350.0,43347.0,0.115404]
[1644246985120,0.00086398,43350.0,43349.0,0.045]
[1644246988072,0.00586398,43350.0,43349.0,0.045]
[1644246988271,0.00086398,43350.0,43349.0,0.045]
[1644246988672,0.00153691,43350.0,43349.0,0.045]
[1644246988874,0.00019691,43350.0,43349.0,0.11662163]
[1644246991128,0.00019691,43350.0,43349.0,0.045]
[1644246992129,0.00019691,43350.0,43349.0,0.1278828]
[1644246992733,0.00019691,43350.0,43349.0,0.38490727]
[1644246992967,0.00093893,43352.0,43349.0,0.38490727]
[1644246993168,0.00093893,43352.0,43351.0,0.29600623]
[1644246993369,0.00093893,43352.0,43351.0,0.34600623]
[1644246993670,0.00075141,43352.0,43351.0,0.34600623]
[1644246993868,0.00075141,43352.0,43351.0,0.05]
[1644246994270,0.00075141,43352.0,43350.0,0.16539519]
[1644246994669,0.00075141,43352.0,43350.0,0.21039519]
[1644246995169,0.00075141,43352.0,43350.0,0.16539519]
[1644246995372,0.00075141,43352.0,43350.0,0.21039519]
[1644246996170,0.00075141,43352.0,43350.0,0.16539519]
[1644246996369,0.00075141,43352.0,43351.0,0.21818286]
[1644246997223,0.00075141,43352.0,43351.0,0.26818286]
[1644246997426,0.00075141,43352.0,43351.0,0.59452686]
[1644246997622,0.00062507,43354.0,43353.0,0.045]
[1644246997822,0.00062507,43354.0,43353.0,0.37890382]
[1644246998023,0.00062507,43354.0,43353.0,0.47510382]
[1644246998222,0.00062346,43357.0,43355.0,0.6]
[1644246998422,0.17932945,43370.0,43366.0,0.045]
[1644246998622,0.23031,43369.0,43367.0,0.02001183]
[1644246999020,0.03528984,43370.0,43368.0,0.2419659]
[1644246999222,0.03460034,43371.0,43370.0,0.28060571]
[1644246999423,0.00026824,43372.0,43369.0,0.41414568]
[1644246999424,0.03400082,43372.0,43369.0,0.41414568]
[1644246999622,0.03400082,43372.0,43369.0,0.21152995]
[1644246999823,0.03400082,43372.0,43369.0,0.26152995]
[1644247000321,0.00026824,43374.0,43371.0,0.057665]
[1644247000587,0.00026824,43375.0,43371.0,0.057665]
[1644247000774,0.00026824,43376.0,43372.0,0.2746524]
[1644247000971,0.39576647,43377.0,43371.0,0.157665]
[1644247000972,0.34576647,43377.0,43371.0,0.157665]
[1644247001175,0.05026824,43377.0,43375.0,0.08719392]
[1644247001374,0.34576647,43378.0,43375.0,0.08719392]
[1644247001573,0.36576647,43379.0,43376.0,0.22832327]
[1644247001774,0.05,43377.0,43373.0,0.11533]
[1644247001975,0.05,43377.0,43361.0,0.5767]
[1644247001976,0.39571434,43374.0,43359.0,0.0462]
[1644247002175,0.34571434,43371.0,43356.0,0.1703]
[1644247002476,0.057688,43369.0,43356.0,0.1703]
[1644247002674,0.05,43364.0,43359.0,0.19355256]
[1644247003274,0.05,43364.0,43361.0,0.11537]
[1644247003475,0.00081147,43368.0,43361.0,0.11537]
[1644247003875,0.0462,43367.0,43361.0,0.11537]
[1644247004323,0.05,43366.0,43362.0,0.05]
[1644247004526,0.05,43363.0,43361.0,0.11537]
[1644247005123,0.0462,43365.0,43361.0,0.11537]
[1644247005923,0.0462,43365.0,43362.0,0.05]
[1644247006825,0.05,43367.0,43361.0,0.11537]
[1644247007626,0.10469447,43368.0,43361.0,0.11537]
[1644247007828,0.04946473,43364.0,43362.0,0.05]
[1644247008470,0.00080987,43366.0,43362.0,0.107683]
[1644247008671,0.00080987,43366.0,43362.0,0.16536373]
[1644247009071,0.00331121,43369.0,43362.0,0.16536373]
[1644247009270,0.0462,43368.0,43362.0,0.16536373]
[1644247009472,0.0462,43368.0,43362.0,0.057683]
[1644247009671,0.00331121,43364.0,43362.0,0.057683]
[1644247010071,0.00331121,43364.0,43362.0,0.0780345]
[1644247011572,0.00331121,43364.0,43362.0,0.1280345]
[1644247011824,0.00281121,43364.0,43363.0,0.31640137]
[1644247012224,0.00281121,43364.0,43363.0,0.6583551]
[1644247012623,0.00303235,43364.0,43363.0,0.6583551]
[1644247012823,0.00303235,43364.0,43363.0,0.55999064]
[1644247013023,0.00303235,43364.0,43363.0,0.51280185]
[1644247013222,0.00303235,43364.0,43363.0,0.17084812]
[1644247014225,0.00303235,43364.0,43363.0,0.2996697]
[1644247014425,0.00303235,43364.0,43363.0,0.21803691]
[1644247014625,0.00022114,43364.0,43362.0,0.27526264]
[1644247014824,0.00022114,43364.0,43361.0,0.26213295]
[1644247015025,0.05022114,43364.0,43362.0,0.27559856]
[1644247015228,0.05022114,43364.0,43362.0,0.057683]
[1644247015674,0.05022114,43364.0,43363.0,0.27463503]
[1644247015874,0.05022114,43364.0,43362.0,0.057683]
[1644247016077,0.05022114,43364.0,43362.0,0.3351003]
[1644247016274,0.05022114,43364.0,43363.0,0.27404475]
[1644247016275,0.00022114,43364.0,43363.0,0.27404475]
[1644247016477,0.00012114,43364.0,43363.0,0.60038875]
[1644247016674,0.00012114,43364.0,43363.0,0.27404475]
[1644247017575,0.00032609,43364.0,43363.0,0.27404475]
[1644247017975,0.00117103,43364.0,43363.0,0.27404475]
[1644247018174,0.00108103,43364.0,43362.0,0.56615245]
[1644247018574,0.00108103,43364.0,43363.0,0.045]
[1644247018575,0.00106586,43364.0,43363.0,0.045]
[1644247018778,0.00106586,43364.0,43363.0,0.371344]
[1644247019074,0.24702818,43373.0,43372.0,0.06950152]
[1644247019320,0.00026824,43374.0,43371.0,0.52450424]
[1644247019321,0.24702818,43374.0,43371.0,0.52450424]
[1644247019521,0.00028081,43373.0,43371.0,0.52450424]
[1644247019723,0.24702818,43373.0,43371.0,0.57450424]
[1644247019921,0.24702818,43373.0,43371.0,0.27460674]
[1644247020124,0.24702818,43372.0,43371.0,0.27460674]
[1644247020325,0.05,43372.0,43370.0,0.17299937]
[1644247020523,0.05,43372.0,43369.0,0.02055794]
[1644247020724,0.24698566,43371.0,43369.0,0.02055794]
[1644247020931,0.50789195,43370.0,43369.0,0.02055794]
[1644247021124,0.26090629,43370.0,43369.0,0.02055794]
[1644247021341,0.26090629,43370.0,43369.0,0.01005172]
[1644247021525,0.3466361,43372.0,43369.0,0.01005172]
[1644247021824,0.34635529,43372.0,43369.0,0.01005172]
[1644247022024,0.29635529,43371.0,43369.0,0.01005172]
[1644247022225,0.35071434,43370.0,43365.0,0.01981608]
[1644247022426,0.29642683,43366.0,43365.0,0.01981608]
[1644247022626,0.34642683,43366.0,43365.0,0.01981608]
[1644247023275,0.05,43366.0,43365.0,0.01981608]
[1644247023473,0.34642986,43366.0,43365.0,0.01981608]
[1644247023875,0.05,43366.0,43365.0,0.01981608]
[1644247024073,0.34642986,43366.0,43365.0,0.01981608]
[1644247024973,0.34642986,43366.0,43363.0,0.17491]
[1644247024974,0.39262986,43366.0,43363.0,0.17491]
[1644247025773,0.24419242,43364.0,43363.0,0.17491]
[1644247025974,0.29039242,43364.0,43363.0,0.17491]
[1644247027423,0.29039242,43364.0,43356.0,0.42233936]
[1644247027621,0.29039242,43364.0,43356.0,0.07130374]
[1644247027622,0.19764173,43360.0,43356.0,0.07130374]
[1644247027822,0.19764173,43360.0,43357.0,0.05]
[1644247028221,0.19764173,43360.0,43359.0,0.057685]
[1644247028929,0.24705217,43362.0,43359.0,0.057685]
[1644247029122,0.24705217,43362.0,43359.0,0.052685]
[1644247029323,0.19770171,43360.0,43359.0,0.052685]
[1644247029522,0.23422526,43361.0,43359.0,0.052685]
[1644247029923,0.48127743,43361.0,43359.0,0.052685]
[1644247030323,0.48127743,43361.0,43359.0,0.043685]
[1644247031374,0.24705217,43360.0,43358.0,0.0007179]
[1644247031971,0.58065512,43361.0,43356.0,0.07130374]
[1644247032271,0.24719921,43358.0,43357.0,0.00071791]
[1644247032472,0.34339921,43358.0,43357.0,0.00071791]
[1644247032672,0.39262986,43358.0,43357.0,0.00071791]
[1644247032872,0.20058675,43350.0,43349.0,0.13459182]
[1644247033073,0.20058675,43350.0,43349.0,0.13441397]
[1644247033473,0.20058675,43350.0,43349.0,0.01920982]
[1644247034523,0.01954244,43351.0,43349.0,0.01920982]
[1644247034727,0.01954244,43351.0,43349.0,0.12690582]
[1644247034923,0.01954244,43351.0,43349.0,0.12680582]
[1644247035525,0.23603721,43350.0,43349.0,0.12680582]
[1644247035725,0.23603721,43350.0,43349.0,0.07680582]
[1644247036127,0.43382105,43350.0,43349.0,0.07680582]
[1644247036327,0.23603721,43350.0,43349.0,0.07680582]
[1644247036525,0.23603721,43350.0,43349.0,0.07670582]
[1644247037227,0.23612346,43350.0,43349.0,0.05670582]
[1644247038074,0.23698756,43350.0,43349.0,0.05670582]
[1644247038275,0.23698756,43350.0,43349.0,0.037496]
[1644247038475,0.23698756,43350.0,43349.0,0.037396]
[1644247038675,0.23698756,43350.0,43349.0,0.212306]
[1644247038877,0.4847714,43350.0,43349.0,0.17491]
[1644247039078,0.8,43348.0,43342.0,0.50027993]
[1644247039277,0.24783416,43343.0,43342.0,0.50027993]
[1644247039482,0.29403416,43343.0,43342.0,0.5]
[1644247039677,0.0962,43343.0,43342.0,0.46536763]
[1644247039876,0.0962,43343.0,43342.0,0.43309927]
[1644247040279,0.0962,43343.0,43341.0,0.00315377]
[1644247040478,0.36293964,43342.0,43335.0,0.00027993]
[1644247040677,0.05,43337.0,43334.0,0.02145864]
[1644247041178,0.05,43335.0,43334.0,0.02145864]
[1644247041823,0.31807651,43335.0,43334.0,0.02145864]
[1644247042224,0.26807651,43335.0,43334.0,0.2584416]
[1644247042422,0.26807651,43335.0,43334.0,0.02145864]
[1644247042922,0.26807651,43335.0,43331.0,0.00027993]
[1644247043123,0.26807651,43335.0,43332.0,0.00071854]
[1644247043323,0.05,43334.0,43332.0,0.00071854]
[1644247043923,0.26807651,43335.0,43332.0,0.00071854]
[1644247044127,0.107726,43334.0,43331.0,0.00099849]
[1644247044330,0.107726,43334.0,43331.0,0.00071856]
[1644247044627,0.107726,43334.0,43331.0,0.00099849]
[1644247044823,0.107726,43334.0,43328.0,0.001]
[1644247045875,0.107726,43334.0,43329.0,0.18981699]
[1644247047181,0.112726,43334.0,43329.0,0.18981699]
[1644247047578,0.00016242,43333.0,43329.0,0.18981699]
[1644247047779,0.00016242,43333.0,43329.0,0.00071858]
[1644247047979,0.05097248,43333.0,43329.0,0.00071858]
[1644247048479,0.05,43332.0,43329.0,0.00071858]
[1644247048878,0.05,43332.0,43328.0,0.001]
[1644247049079,0.05,43332.0,43328.0,0.00171859]
[1644247049321,0.05,43329.0,43328.0,0.00171859]
[1644247049521,0.057731,43330.0,43328.0,0.00171859]
[1644247049726,0.057731,43330.0,43328.0,0.00161859]
[1644247050021,0.057731,43330.0,43328.0,0.0009]
[1644247050022,0.0962,43329.0,43328.0,0.0009]
[1644247050242,0.0962,43329.0,43327.0,0.0007186]
[1644247050243,1.02108319,43328.0,43327.0,0.0007186]
[1644247050423,1.80476893,43328.0,43327.0,0.0007186]
[1644247050821,1.80476893,43328.0,43327.0,3.109e-05]
[1644247050822,1.70258418,43328.0,43327.0,3.109e-05]
[1644247051020,1.50476893,43328.0,43327.0,3.109e-05]
[1644247051220,0.115489,43327.0,43324.0,0.00111408]
[1644247051522,0.05,43325.0,43324.0,0.00111408]
[1644247051721,0.31890982,43325.0,43324.0,0.00111408]
[1644247052119,0.41890982,43325.0,43324.0,0.00111408]
[1644247052723,0.41890982,43325.0,43322.0,0.00071866]
[1644247052724,0.7,43324.0,43322.0,0.00071866]
[1644247052972,0.30638024,43321.0,43320.0,0.04428562]
[1644247053172,0.67567369,43321.0,43320.0,0.04428562]
[1644247053776,0.61292769,43321.0,43320.0,0.17225562]
[1644247054473,0.71292769,43321.0,43320.0,0.17215562]
[1644247054977,0.71292769,43321.0,43320.0,0.04428562]
[1644247055375,0.61292769,43321.0,43320.0,0.03928562]
[1644247055779,0.30654745,43321.0,43320.0,0.03928562]
[1644247055976,0.30654745,43321.0,43320.0,0.03428562]
[1644247056177,0.36429245,43321.0,43320.0,0.03428562]
[1644247056376,0.36429245,43321.0,43320.0,0.03261262]
[1644247056824,0.6742259,43321.0,43320.0,0.03261262]
[1644247057627,0.19422702,43312.0,43307.0,0.23195815]
[1644247057823,0.19422702,43312.0,43307.0,0.05]
[1644247058223,0.19422702,43312.0,43311.0,0.0189014]
[1644247059525,0.25,43320.0,43311.0,0.0189014]
[1644247059723,0.3462,43320.0,43311.0,0.0189014]
[1644247059925,0.3462,43320.0,43311.0,0.0139014]
[1644247060570,0.26363662,43314.0,43311.0,0.0139014]
[1644247060968,0.26363662,43314.0,43311.0,0.00027463]
[1644247061171,0.26363662,43314.0,43310.0,0.057744]
[1644247062269,0.2642782,43314.0,43310.0,0.057744]
[1644247062470,0.2642782,43314.0,43308.0,0.00027463]
[1644247062674,0.2642782,43314.0,43307.0,0.11620919]
[1644247062869,0.0007907,43312.0,43307.0,0.11620919]
[1644247063173,0.0007907,43312.0,43307.0,0.11549]
[1644247063371,0.0007907,43312.0,43307.0,0.11620918]
[1644247063569,0.00143228,43312.0,43307.0,0.11620918]
[1644247063770,0.00143228,43312.0,43307.0,0.00071918]